[Event "Uppsala GM June 2022"]
[Site "Uppsala"]
[Date "2022.06.17"]
[Round "6.4"]
[White "Peng, Li Min"]
[Black "Chatalbashev, Boris"]
[Result "1/2-1/2"]
[ECO "A58"]
[WhiteElo "2506"]
[BlackElo "2536"]
[Annotator "TA"]
[PlyCount "64"]
[EventDate "2022.06.09"]
[EventType "tourn"]
[EventCountry "SWE"]
[SourceTitle "playchess.com"]
[Source "ChessBase"]
[SourceQuality "1"]
[TimeControl "5400+30"]

{[%evp 9,64,20,43,58,50,37,51,53,47,23,31,37,34,33,37,34,54,30,37,27,38,27,27,33,29,12,37,0,0,0,0,0,0,0,0,0,0,0,0,0,0,0,0,0,0,0,0,0,0,0,0,0,0,0,0,0,0]} 1. d4 {[%emt 0:01:04]} Nf6 {[%emt 0:00:05]} 2. c4 {[%emt 0:00:24][%cal Bc2c4,Bc4b5][%mdl 32]} c5 {[%emt 0:00:12]} 3. d5 {[%emt 0:00:08]} b5 {[%emt 0:00:30]} 4. cxb5 {[%emt 0:00:23]} a6 {[%emt 0:00:08]} 5. bxa6 {[%emt 0:04:31]} g6 {[%emt 0:00:16]} 6. Nc3 {[%emt 0:00:07] A58: Benko/Volga Gambit: Lines with 5 bxa6.} Bg7 {[%emt 0:00:06]} 7. e4 {[%emt 0:00:13] Threatens to win with e5.} O-O {[%emt 0:00:11]} 8. a7 {[%emt 0:04:16] White is slightly better.} Rxa7 {[%emt 0:00:13]} 9. Nf3 {[%emt 0:00:07]} e6 {[%emt 0:06:14]} 10. Be2 {[%emt 0:05:19]} exd5 {[%emt 0:00:07]} 11. exd5 (11. e5 {looks sharper.} Ne4 12. Nxd5 Nc6 13. O-O) 11... d6 {[%emt 0:00:04]} 12. O-O {[%emt 0:00:23]} Na6 {[%emt 0:08:07]} 13. Bb5 {[%emt 0:11:09]} Nc7 {[%emt 0:09:23]} 14. Bc6 {[%emt 0:01:21]} Bb7 {[%emt 0:00:32]} 15. Bf4 {[%emt 0:08:56]} Nh5 {[%emt 0:07:42]} 16. Bg5 {[%emt 0:01:32][%cal Bf4g5,Bg5e7,Be7d6,Bd6c7][%mdl 32]} Qa8 {[%emt 0:20:24]} 17. Be7 {[%emt 0:01:24][%csl LRd6,LRf8]} Rc8 {[%emt 0:07:51] [#]} 18. Bd7 $146 {[%emt 0:04:42]} (18. Bxd6 Bxc6 19. Bxc7 (19. dxc6 Rd8 $17) 19... Bxc3 20. dxc6 (20. bxc3 Ba4 $17) 20... Bxb2 $15) ({Predecessor:} 18. Bxb7 Rxb7 19. Bxd6 Rxb2 20. Be5 Nf4 21. Bxf4 Bxc3 22. d6 Nd5 23. Bg3 c4 24. Rb1 Rxb1 25. Qxb1 Bf6 26. d7 Rd8 {½-½ (26) Kolpakov,N (2323)-Volodarsky,Y (2339) ICCF email 2016}) 18... Rb8 {[%emt 0:00:39][%cal Rc7d5,Bc8b8,Bb8d8,Bd8d7][%mdl 32] The position is equal.} 19. Bxd6 {[%emt 0:00:27]} Rd8 {[%emt 0:00:09]} 20. Bxc7 {[%emt 0:00:51]} Rxd7 {[%emt 0:00:06]} 21. d6 {[%emt 0:05:27]} Bc6 {[%emt 0:03:15] And now ...Nf4 would win. This bishop pair is nice.} 22. a4 {[%emt 0:18:07]} Nf4 $1 {[%emt 0:02:36]} (22... Raxc7 23. dxc7 Nf4 24. Qb3 (24. Qc1 Bh6 $17) 24... Rxc7 25. Nb5 Ne2+ 26. Kh1 $14) 23. Nb5 {[%emt 0:01:24]} Nxg2 {[%emt 0:04:13]} 24. Ra3 {[%emt 0:05:36]} (24. Kxg2 Raxc7 25. Nxc7 Qd8) ({Wrong is} 24. Nxa7 $2 Bxf3 25. Qb3 Nf4 $19) 24... Nf4 {[%emt 0:04:16][%cal Oa7c7] [#] aiming for ...Raxc7!} 25. Nxa7 {[%emt 0:01:01]} Nh3+ $1 {[%emt 0:01:28]} 26. Kg2 {[%emt 0:00:18]} Nf4+ {[%emt 0:00:12]} 27. Kg3 {[%emt 0:00:06]} Nh5+ {[%emt 0:00:47]} 28. Kg2 {[%emt 0:00:46]} Nf4+ $1 {[%emt 0:00:29]} 29. Kg1 {[%emt 0:00:21]} Nh3+ $1 {[%emt 0:04:21]} 30. Kg2 {[%emt 0:00:07]} Nf4+ {[%emt 0:00:16]} 31. Kg3 {[%emt 0:00:08]} Nh5+ {[%emt 0:00:07]} 32. Kg2 $1 {[%emt 0:00:05]} Nf4+ $1 {[%emt 0:21:31] Weighted Error Value: White=0.02 (flawless) /Black=0.01 (flawless)} 1/2-1/2

[Event "Uppsala GM June 2022"]
[Site "Uppsala"]
[Date "2022.06.17"]
[Round "6.5"]
[White "Larkin, Vladyslav"]
[Black "Sorensen, Hampus"]
[Result "1-0"]
[ECO "A13"]
[WhiteElo "2430"]
[BlackElo "2372"]
[Annotator "TA"]
[PlyCount "107"]
[EventDate "2022.06.09"]
[EventType "tourn"]
[EventCountry "SWE"]
[SourceTitle "playchess.com"]
[Source "ChessBase"]
[SourceQuality "1"]
[TimeControl "5400+30"]

{[%evp 9,107,18,40,9,19,0,0,-10,-8,-29,-25,-14,-12,-12,7,-34,5,12,6,11,0,0,10,17,11,0,0,0,7,-8,0,0,0,0,0,0,14,16,23,14,23,23,27,0,0,0,0,1,17,16,16,16,17,17,17,23,76,97,168,167,167,167,167,167,167,167,167,167,167,151,559,549,510,277,463,437,422,0,0,0,354,304,6078,5206,2314,1977,6090,6025,5206,3725,29976,29971,29977,29978,29979,29980,29980,29981,29985,-29992]} 1. c4 {[%emt 0:00:05]} e6 {[%emt 0:01:18]} 2. g3 {[%emt 0:00:28]} d5 {[%emt 0:00:15]} 3. Bg2 {[%emt 0:00:04]} dxc4 {[%emt 0:01:01]} 4. Qa4+ {[%emt 0:01:36]} Nd7 {[%emt 0:00:23][%cal Bb8d7,Bd7e5,Be5c6,Bc6a5][%mdl 32]} 5. Qxc4 {[%emt 0:00:34]} Rb8 {[%emt 0:00:31] [#]} 6. Nc3 $146 {[%emt 1:30:43] A13: English Opening: 1...e6.} ({Predecessor:} 6. Nf3 b5 7. Qc2 Bb7 8. O-O Ngf6 9. Nc3 c5 10. d3 a6 11. a4 b4 12. Nb1 Bd6 13. Nbd2 {1-0 (43) Hera,I (2598)-Shengelia,D (2522) Hungary 2019}) 6... a6 {[%emt 0:01:33]} 7. a4 {[%emt 0:00:00]} Ne5 {[%emt 0:05:50]} 8. Qe4 {[%emt 0:00:00] The position is equal.} Nc6 {[%emt 0:14:32]} 9. Nf3 {[%emt 0:00:00] Inhibits e5.} Nf6 {[%emt 0:00:14]} 10. Qc4 {[%emt 0:00:00]} Na5 {[%emt 0:05:30]} 11. Qa2 {[%emt 0:00:00]} Bb4 {[%emt 0:00:46][%cal Oe6e5]} 12. Ne5 {[%emt 0:00:00]} Bd6 {[%emt 0:02:24]} (12... Qd6 {keeps more tension.} 13. d4 Qxd4 14. Bf4 Bd6) 13. Nc4 {[%emt 0:00:00]} Nxc4 {[%emt 0:00:18]} 14. Qxc4 {[%emt 0:00:00]} e5 {[%emt 0:00:29]} 15. d4 {[%emt 0:00:00]} Be6 {[%emt 0:01:59]} 16. d5 {[%emt 0:00:00]} Bd7 {[%emt 0:00:37]} 17. a5 {[%emt 0:00:00]} O-O {[%emt 0:01:49]} 18. O-O {[%emt 0:00:00]} Qe7 {[%emt 0:05:35]} 19. h3 {[%emt 0:00:00]} Rfc8 {[%emt 0:01:09]} 20. Rd1 {[%emt 0:00:00]} h6 {[%emt 0:02:53]} 21. Qd3 {[%emt 0:00:00]} Bc5 {[%emt 0:11:13]} 22. Be3 {[%emt 0:00:00]} Bxe3 {[%emt 0:01:49]} 23. Qxe3 {[%emt 0:00:00]} Ne8 {[%emt 0:00:14]} 24. Ne4 {[%emt 0:00:00]} Nd6 {[%emt 0:00:50]} 25. Qa3 {[%emt 0:00:00]} Bf5 {[%emt 0:07:25]} 26. Nxd6 {[%emt 0:00:00]} cxd6 {[%emt 0:00:28]} 27. Rac1 {[%emt 0:00:00]} Rc7 {[%emt 0:02:40]} 28. e4 {[%emt 0:00:00]} Rxc1 {[%emt 0:02:34]} 29. Rxc1 {[%emt 0:00:00]} Rc8 {[%emt 0:00:15]} 30. Rc3 {[%emt 0:00:00]} Bd7 {[%emt 0:00:06]} 31. Qb4 {[%emt 0:00:00]} Rxc3 {[%emt 0:01:24]} 32. bxc3 $11 {[%emt 0:00:00][%mdl 4096] Endgame KQB-KQB} Bc8 {[%emt 0:03:32]} (32... Be8 $1 $11) 33. Qb6 $16 {[%emt 0:00:00]} g5 {[%emt 0:10:32]} (33... Kf8 $16 {keeps fighting.}) 34. c4 $18 {[%emt 0:00:00]} Kg7 {[%emt 0:00:58]} 35. Bf1 {[%emt 0:03:48]} h5 {[%emt 0:00:09]} 36. c5 {[%emt 0:04:27]} dxc5 {[%emt 0:00:02]} 37. d6 {[%emt 0:00:07]} Qe8 {[%emt 0:02:14]} 38. Qxc5 {[%emt 0:00:05]} Kf6 {[%emt 0:01:07]} 39. Qb6 {[%emt 0:00:57] [#] aiming for d7+.} Qc6 {[%emt 0:02:06]} (39... Kg7 $16 40. Be2 h4) 40. Qd8+ {[%emt 0:02:55]} Kg6 {[%emt 0:00:02]} 41. Qh8 {[%emt 0:00:51]} Qc1 $2 {[%emt 0:03:59]} (41... Bd7 42. Qg8+ (42. Qxe5 Qc1 $18) 42... Kh6) 42. Qg8+ {[%emt 0:00:48]} Kh6 {[%emt 0:00:38]} 43. Qxf7 $2 {[%emt 0:02:46]} (43. h4 $18 gxh4 44. gxh4 (44. Qxf7 Bh3 $16)) 43... Bxh3 $1 $11 {[%emt 0:00:03]} 44. Qc4 $36 {[%emt 0:00:05][%mdl 2048] Black is under pressure.} Qa1 {[%emt 0:03:51][%mdl 8192] [#]} (44... Qe1 $11 {and Black is okay.}) 45. Kh2 $1 $18 {[%emt 0:00:42]} Bxf1 {[%emt 0:04:42]} (45... Qxf1 $2 46. Qxf1 Bxf1 47. d7 $18) (45... Bg4 46. Kg2 Qe1) 46. Qe6+ {[%emt 0:00:04]} Kg7 {[%emt 0:00:04]} 47. d7 {[%emt 0:00:44]} Qd4 {[%emt 0:00:05]} 48. Qe7+ {[%emt 0:00:03]} Kg6 {[%emt 0:00:08]} 49. Kg1 {[%emt 0:02:06]} Qxe4 {[%emt 0:00:05]} 50. Qd6+ {[%emt 0:00:34] White mates.} Kf7 {[%emt 0:00:25]} 51. Kxf1 {[%emt 0:00:21]} Qb1+ {[%emt 0:00:30]} 52. Kg2 {[%emt 0:00:23]} Qe4+ {[%emt 0:00:03]} 53. Kh2 {[%emt 0:00:10]} Qf3 {[%emt 0:03:01]} 54. Qd5+ $4 {[%emt 0:02:04][%mdl 40960] Weighted Error Value: White=0.19 (very precise) /Black=0.61. Loss on time!?} 1-0

[Event "Uppsala GM June 2022"]
[Site "Uppsala"]
[Date "2022.06.18"]
[Round "7.1"]
[White "Nilsson, Joakim"]
[Black "Peng, Li Min"]
[Result "0-1"]
[ECO "A34"]
[WhiteElo "2237"]
[BlackElo "2506"]
[Annotator "TA"]
[PlyCount "66"]
[EventDate "2022.06.09"]
[EventType "tourn"]
[EventCountry "SWE"]
[SourceTitle "playchess.com"]
[Source "ChessBase"]
[SourceQuality "1"]
[TimeControl "5400+30"]

{[%evp 9,66,17,20,20,26,7,46,18,58,56,82,51,72,0,0,0,0,0,0,0,0,0,0,-3,0,0,0,0,0,0,0,0,0,-8,0,-10,0,0,0,0,66,70,62,75,75,-16,-6,-14,-6,-1115,-1141,-1149,-1118,-1118,-1112,-938,-652,-1145,-1128]} 1. Nf3 {[%emt 0:06:04]} Nf6 {[%emt 0:01:53]} 2. g3 {[%emt 0:00:22]} c5 {[%emt 0:03:28]} 3. c4 {[%emt 0:00:13]} Nc6 {[%emt 0:04:48]} 4. Bg2 {[%emt 0:00:21]} e5 {[%emt 0:01:30]} 5. Nc3 {[%emt 0:00:18]} d6 {[%emt 0:00:33]} 6. d3 {[%emt 0:00:18] A34: Symmetrical English: 2 Nc3, lines with ...d5.} h6 {[%emt 0:00:11]} 7. a3 {[%emt 0:01:56][%cal Ob2b4]} Be6 {[%emt 0:01:25]} 8. O-O {[%emt 0:05:14][%cal Ob2b4] White is slightly better.} (8. b4 $5) 8... Qd7 {[%emt 0:01:00]} 9. b4 {[%emt 0:08:33] [#]} cxb4 $146 {[%emt 0:00:16]} ({Predecessor:} 9... Be7 10. Rb1 O-O 11. b5 Nd4 12. e3 Nxf3+ 13. Qxf3 Rab8 14. e4 Nh7 15. Qe2 f5 {1-0 (26) Chorfi,K (2095)-Onem,C (2283) ICCF email 2007}) 10. axb4 {[%emt 0:00:51]} Nxb4 {[%emt 0:00:03]} 11. Ba3 {[%emt 0:00:39]} ({White should try} 11. Qb3 $16 a5 12. Ba3) 11... Nc6 $11 {[%emt 0:01:11]} 12. Qa4 {[%emt 0:03:03]} Be7 {[%emt 0:00:32]} 13. Rfb1 {[%emt 0:00:47][%cal Ob1b7] Strongly threatening Rxb7!} O-O {[%emt 0:00:11]} 14. Nd2 {[%emt 0:11:42][%cal Ob1b7]} Rab8 {[%emt 0:00:07]} 15. Rb2 {[%emt 0:02:34]} Bh3 {[%emt 0:03:51]} 16. Bh1 {[%emt 0:08:12]} Rfc8 {[%emt 0:02:18]} 17. Rab1 {[%emt 0:01:51]} b6 {[%emt 0:03:45]} 18. Nde4 {[%emt 0:02:40]} Nxe4 {[%emt 0:01:07]} 19. Bxe4 {[%emt 0:00:49]} h5 {[%emt 0:00:08]} 20. Ra2 {[%emt 0:05:43]} h4 {[%emt 0:04:28]} 21. Nd5 {[%emt 0:03:07]} Bf8 {[%emt 0:00:07][%cal Ob6b5]} 22. Bc1 {[%emt 0:00:45][%cal Ba3c1,Bc1e3,Be3d4][%mdl 32]} f5 {[%emt 0:00:54]} 23. Bf3 {[%emt 0:02:11]} f4 {[%emt 0:00:33]} 24. gxf4 {[%emt 0:03:55]} Qf7 {[%emt 0:00:19]} ({Black should play} 24... b5 $11 25. Rxb5 Nd4 26. Rxb8 Qxa4 27. Rxa4 Nxf3+ 28. exf3 Rxb8) 25. Be3 $14 {[%emt 0:00:56]} b5 $1 {[%emt 0:04:38]} 26. cxb5 {[%emt 0:08:43] Hoping for Rc2.} ({Inferior is} 26. Rxb5 Rxb5 27. cxb5 (27. Qxb5 $2 {perishes.} Rb8 $19) 27... Nd4 $17) 26... Be6 {[%emt 0:00:06] [#]} 27. Qe4 {[%emt 0:05:47]} (27. Raa1 $1 $16) 27... Nd4 $11 {[%emt 0:03:14]} 28. Bxd4 {[%emt 0:01:40]} Rxb5 $1 $40 {[%emt 0:00:02][%mdl 192] Deflection. White needs to defend precisely. Really sharp!} 29. Rxb5 {[%emt 0:03:36][%mdl 8192] White does not recover from this.} (29. Rab2 $11 Bxd5 30. Rxb5 Bxe4 31. Bxe4 Qxf4 32. Bxa7) 29... Rc1+ $19 {[%emt 0:02:16][%cal Bc8c1,Bc1g1,Bg1g2][%mdl 32] Black is clearly winning.} 30. Kg2 {[%emt 0:00:08]} h3+ {[%emt 0:00:14]} 31. Kg3 {[%emt 0:00:14]} Rg1+ {[%emt 0:00:03]} 32. Bg2 {[%emt 0:03:32]} Qh5 {[%emt 0:00:01][%csl Ge6][%cal Rh5g4]} 33. Ne3 {[%emt 0:03:22][%cal Of4f5] Prevents Qg4+.} Rxg2+ {[%emt 0:00:07] Weighted Error Value: White=0.43/Black=0.18 (very precise)} ({Less strong is} 33... Bxa2 {[#]} 34. fxe5 $1 hxg2 35. Qg4 Qxg4+ 36. Nxg4 $16) 0-1

[Event "Uppsala GM June 2022"]
[Site "Uppsala"]
[Date "2022.06.18"]
[Round "7.2"]
[White "Von Bahr, Oskar"]
[Black "Falkevall, Axel"]
[Result "1-0"]
[ECO "B31"]
[WhiteElo "2373"]
[BlackElo "2290"]
[Annotator "TA"]
[PlyCount "57"]
[EventDate "2022.06.09"]
[EventType "tourn"]
[EventCountry "SWE"]
[SourceTitle "playchess.com"]
[Source "ChessBase"]
[SourceQuality "1"]
[TimeControl "5400+30"]

{[%evp 22,57,0,0,0,0,0,0,0,0,0,0,0,0,0,0,0,0,0,0,0,0,0,0,0,0,138,133,348,350,327,319,482,472,641,327,645,530]} 1. e4 {[%emt 0:00:03]} c5 {[%emt 0:00:08]} 2. Nf3 {[%emt 0:00:04]} Nc6 {[%emt 0:00:08]} 3. Bb5 {[%emt 0:00:13]} g6 {[%emt 0:00:32]} 4. O-O {[%emt 0:00:25]} Bg7 {[%emt 0:00:06]} 5. Re1 {[%emt 0:00:37]} Nf6 {[%emt 0:00:52][%cal Bg8f6,Bf6d5,Bd5c7][%mdl 32]} 6. e5 {[%emt 0:00:20]} Nd5 {[%emt 0:00:33]} 7. Nc3 {[%emt 0:00:07][%cal Bb1c3,Bc3e4,Be4f6][%mdl 32]} Nc7 {[%emt 0:00:46]} 8. Bxc6 {[%emt 0:00:14]} dxc6 {[%emt 0:01:10]} 9. Ne4 {[%emt 0:00:18]} b6 {[%emt 0:00:54]} 10. Nf6+ {[%emt 0:00:41]} Kf8 {[%emt 0:00:26]} 11. Ne4 {[%emt 0:00:22]} Bg4 {[%emt 0:01:23] 11...h6 is the modern continuation.} 12. d3 {[%emt 0:00:29]} Bxe5 {[%emt 0:04:28] B31: Sicilian: 2...Nc6 3 Bb5 g6.} 13. Nxe5 {[%emt 0:01:03]} Bxd1 {[%emt 0:00:19]} 14. Bh6+ {[%emt 0:00:09]} Kg8 {[%emt 0:00:31][%cal Of7f6] Threatens to win with ...f6! The position is equal.} 15. Nxc6 {[%emt 0:00:18] Pair of Knights!} Bxc2 {[%emt 0:01:10] Strongly threatening ...Qd7.} 16. Nxd8 {[%emt 0:00:45]} Rxd8 {[%emt 0:01:45]} 17. Nxc5 {[%emt 0:02:05]} bxc5 {[%emt 0:01:12]} 18. Rxe7 {[%emt 0:00:05]} Ne6 {[%emt 0:00:41]} 19. Rc1 {[%emt 0:08:56]} Bxd3 {[%emt 0:21:07]} 20. Rd1 {[%emt 0:02:44][%cal Od1d3] And now Rxd3! would win.} c4 {[%emt 0:16:23]} 21. b3 {[%emt 0:02:18]} Rb8 {[%emt 0:08:57]} 22. bxc4 {[%emt 0:03:40]} Bxc4 {[%emt 0:02:04] [#]} 23. Rxa7 $146 {[%emt 0:00:33] Hoping for h3.} ({Predecessor:} 23. h4 Ng7 24. Rb7 Re8 25. g4 Bxa2 26. Rxa7 Bb3 27. Rdd7 Be6 28. Rd4 Rc8 29. Rc7 {1-0 (42) Skliarov,V (2376)-Hansen,C (2270) Chess.com INT 2020}) 23... Ng7 {[%emt 0:09:20]} (23... Be2 $11 {keeps the balance.} 24. Re1 Bc4) 24. g4 $1 $16 {[%emt 0:04:30][%mdl 1024] White has strong compensation. White is more active.} Be2 $2 {[%emt 0:03:45] [#] This move loses the game for Black.} (24... g5 $16 {was worth a try.}) 25. Rdd7 $1 $18 {[%emt 0:07:34]} Bc4 {[%emt 0:02:21]} (25... Bxg4 $2 26. Rxf7 Nh5 {[#]} 27. Rg7+ $1 {[%mdl 512]} Nxg7 28. Rxg7+ Kf8 29. Rb7+ Ke8 30. Rxb8+ Kd7 31. Rxh8 $18) 26. h3 {[%emt 0:04:16]} Ne8 {[%emt 0:07:43]} (26... Kf8 {is a better defense.} 27. a4 Be6) 27. a4 {[%emt 0:05:11]} Nf6 {[%emt 0:02:48]} 28. Rd6 {[%emt 0:05:55]} Nd5 $2 {[%emt 0:02:29]} (28... Be6 29. Rxe6 Rb1+ 30. Kg2 fxe6 31. Rg7+ (31. Ra8+ Kf7 $18) 31... Kf8) 29. Rad7 {[%emt 0:02:28] Weighted Error Value: White=0.14 (very precise) /Black=0.70} 1-0

[Event "Uppsala GM June 2022"]
[Site "Uppsala"]
[Date "2022.06.18"]
[Round "7.3"]
[White "Ernst, Thomas"]
[Black "Roshka, Yevgeniy"]
[Result "0-1"]
[ECO "B32"]
[WhiteElo "2300"]
[BlackElo "2468"]
[Annotator "TA"]
[PlyCount "44"]
[EventDate "2022.06.09"]
[EventType "tourn"]
[EventCountry "SWE"]
[SourceTitle "playchess.com"]
[Source "ChessBase"]
[SourceQuality "1"]
[TimeControl "5400+30"]

{[%evp 17,44,43,52,50,52,52,48,52,54,28,50,56,54,48,50,43,56,15,43,-68,-80,-148,-148,-148,-148,-162,-154,-122,-133]} 1. e4 {[%emt 0:00:08]} c5 {[%emt 0:06:51]} 2. Nf3 {[%emt 0:00:17]} Nc6 {[%emt 0:00:04]} 3. d4 {[%emt 0:00:10]} cxd4 {[%emt 0:00:02]} 4. Nxd4 {[%emt 0:00:06]} e5 {[%emt 0:00:06]} 5. Nb5 {[%emt 0:00:20]} a6 {[%emt 0:00:03]} 6. Nd6+ {[%emt 0:00:48]} Bxd6 {[%emt 0:00:12]} 7. Qxd6 {[%emt 0:00:07]} Qe7 {[%emt 0:00:06]} 8. Qd1 {[%emt 0:01:02]} Nf6 {[%emt 0:00:53]} 9. Nc3 {[%emt 0:00:13]} d6 {[%emt 0:00:03]} 10. Bg5 {[%emt 0:06:27] B32: Sicilian: Löwenthal and Kalashnikov Variations.} Be6 {[%emt 0:02:43]} 11. Nd5 {[%emt 0:00:16]} Bxd5 {[%emt 0:00:06]} 12. exd5 {[%emt 0:00:09] White is slightly better.} Nb8 {[%emt 0:00:16][%cal Bc6b8,Bb8d7,Bd7c5][%mdl 32]} (12... Nb4 $2 13. Bxf6 Qxf6 14. a3 $18) 13. Be2 {[%emt 0:02:45]} Nbd7 {[%emt 0:01:46]} 14. a4 {[%emt 0:01:50]} h6 {[%emt 0:03:07]} 15. Be3 {[%emt 0:00:25]} a5 {[%emt 0:01:03] [#]} 16. Bb5 $146 {[%emt 0:05:40]} ({Predecessor:} 16. c3 e4 17. Qd4 O-O 18. O-O Nc5 19. Ra3 Nfd7 20. Bb5 f5 21. b4 Na6 22. Re1 {0-1 (48) Hauge,L (2448)-Li,C (2720) Khanty-Mansiysk 2017}) 16... O-O {[%emt 0:00:48]} 17. c4 {[%emt 0:02:03]} Nc5 {[%emt 0:04:52]} 18. h3 {[%emt 0:07:44]} (18. Bxc5 $14 dxc5 19. Qb3) 18... Nfe4 $15 {[%emt 0:02:14]} 19. Ra3 {[%emt 0:05:57] [#]} (19. O-O $142) 19... f5 $1 $17 {[%emt 0:01:34][%cal Bf7f5,Bf5f4][%mdl 32]} 20. O-O {[%emt 0:00:16]} f4 {[%emt 0:01:13] Black is more active.} 21. Bc1 {[%emt 0:00:11] [#]} Rf5 $1 {[%emt 0:04:29]} 22. f3 {[%emt 0:01:05]} Ng3 {[%emt 0:01:54] Weighted Error Value: White=0.28 (precise) /Black=0.04 (flawless)} 0-1